bitfinex/quotes_BTCUSD_20250206
["timestamp","ask_amount","ask_price","bid_price","bid_amount"]
[1738802381531,4.05174615,97000.0,96999.0,1.07244365]
[1738802381702,4.02252589,97000.0,96999.0,0.23154]
[1738802381908,4.03092589,97000.0,96999.0,0.15464]
[1738802382683,4.03092589,97000.0,96999.0,0.15478015]
[1738802382864,4.03092589,97000.0,96999.0,0.17978015]
[1738802383026,4.03092589,97000.0,96999.0,0.02314015]
[1738802383227,4.13342954,97000.0,96999.0,0.00014015]
[1738802383427,4.13987465,97000.0,96999.0,0.00014015]
[1738802383682,4.29451365,97000.0,96999.0,0.00014015]
[1738802383944,4.13987465,97000.0,96999.0,0.00014015]
[1738802384149,4.29451365,97000.0,96999.0,0.00014015]
[1738802384366,4.29451365,97000.0,96999.0,0.00114015]
[1738802384666,4.40339365,97000.0,96999.0,0.00014015]
[1738802384990,4.40639365,97000.0,96999.0,0.00014015]
[1738802385628,4.40394854,97000.0,96999.0,0.00014015]
[1738802385824,4.39694854,97000.0,96999.0,0.00014015]
[1738802386046,4.4137089,97000.0,96999.0,0.00014015]
[1738802386355,4.4227089,97000.0,96999.0,0.00114015]
[1738802386575,5.9227089,97000.0,96999.0,0.00114015]
[1738802388094,4.4227089,97000.0,96999.0,0.00114015]
[1738802388300,4.5727089,97000.0,96999.0,0.00114015]
[1738802388507,6.08808965,97000.0,96999.0,0.00114015]
[1738802388663,6.16558965,97000.0,96999.0,0.00114015]
[1738802389338,0.154674,96978.0,96977.0,0.00022428]
[1738802389543,0.30326775,96978.0,96977.0,0.00022428]
[1738802389921,0.42746775,96978.0,96977.0,0.00022428]
[1738802390923,0.44422811,96978.0,96977.0,0.00022428]
[1738802391402,0.39813801,96978.0,96977.0,0.00022428]
[1738802391600,0.40113801,96978.0,96977.0,0.00022428]
[1738802392458,0.154681,96974.0,96967.0,0.154691]
[1738802392633,0.10250365,96972.0,96963.0,0.206263]
[1738802393033,0.10250365,96972.0,96966.0,0.154693]
[1738802393461,0.10250365,96972.0,96962.0,0.023]
[1738802393678,0.10250365,96972.0,96967.0,0.15469]
[1738802393878,0.10250365,96972.0,96967.0,0.001]
[1738802394096,0.01676036,96971.0,96967.0,0.15469]
[1738802394295,0.10250365,96970.0,96967.0,0.15469]
[1738802394483,0.0084,96969.0,96967.0,0.15469]
[1738802394644,0.10250365,96968.0,96967.0,0.15469]
[1738802394875,0.10250365,96968.0,96967.0,0.15569]
[1738802395284,0.11926401,96968.0,96967.0,0.15469]
[1738802395479,0.13217045,96968.0,96967.0,0.001]
[1738802396275,0.28217045,96968.0,96967.0,0.001]
[1738802396412,0.37417045,96968.0,96967.0,0.001]
[1738802396608,0.36417045,96968.0,96967.0,0.001]
[1738802396829,0.1,96960.0,96959.0,7.24e-05]
[1738802397036,0.38220565,96960.0,96959.0,7.24e-05]
[1738802397208,0.42770565,96960.0,96959.0,7.24e-05]
[1738802397412,0.44446601,96960.0,96959.0,7.24e-05]
[1738802397611,0.154733,96941.0,96938.0,0.08291659]
[1738802397815,0.10250365,96940.0,96938.0,0.08291659]
[1738802398110,0.10250365,96940.0,96934.0,0.154743]
[1738802398308,0.14885702,96940.0,96931.0,0.023]
[1738802398529,0.10250365,96940.0,96935.0,0.154742]
[1738802398780,0.10250365,96940.0,96936.0,0.15474]
[1738802399129,0.01676036,96939.0,96937.0,0.154739]
[1738802399265,0.10250365,96938.0,96937.0,0.154739]
[1738802400276,0.11926401,96938.0,96937.0,0.154739]
[1738802400479,0.11940397,96938.0,96937.0,0.156739]
[1738802400681,0.11940397,96938.0,96937.0,0.179739]
[1738802400860,0.12780397,96938.0,96937.0,0.025]
[1738802401239,0.14058437,96938.0,96937.0,0.002]
[1738802401361,0.14058437,96938.0,96933.0,0.154745]
[1738802401564,0.14058437,96938.0,96937.0,0.002]
[1738802402168,0.12780397,96938.0,96937.0,0.002]
[1738802402407,0.11940397,96938.0,96937.0,0.025]
[1738802402613,0.12780397,96938.0,96937.0,0.025]
[1738802402948,0.12780397,96938.0,96937.0,0.023]
[1738802403156,0.12780397,96938.0,96937.0,0.024]
[1738802403332,0.14058437,96938.0,96937.0,0.023]
[1738802403648,0.12780397,96938.0,96937.0,0.025]
[1738802404038,0.12780397,96938.0,96937.0,0.023]
[1738802404245,0.12780397,96938.0,96937.0,0.024]
[1738802404607,0.12780397,96938.0,96937.0,0.023]
[1738802404782,0.12780397,96938.0,96937.0,0.025]
[1738802405184,0.12780397,96938.0,96937.0,0.03612174]
[1738802405426,0.12780397,96938.0,96937.0,0.03634623]
[1738802406231,0.12780397,96938.0,96937.0,0.03434623]
[1738802406593,0.01690032,96938.0,96937.0,0.16484623]
[1738802406815,0.01690032,96938.0,96937.0,0.16384623]
[1738802406816,0.02530032,96938.0,96937.0,0.16384623]
[1738802407219,0.02530032,96938.0,96937.0,0.16584623]
[1738802407418,0.01690032,96938.0,96937.0,0.16384623]
[1738802407796,0.01690032,96938.0,96937.0,0.16584623]
[1738802408002,0.01690032,96938.0,96937.0,0.16384623]
[1738802408628,0.00658625,96938.0,96937.0,0.16384623]
[1738802409394,0.00658625,96938.0,96937.0,0.16584623]
[1738802409869,0.00658625,96938.0,96937.0,0.39020128]
[1738802410026,0.00658625,96938.0,96937.0,0.38916985]
[1738802410634,2.5e-07,96938.0,96937.0,0.5016735]
[1738802411459,2.5e-07,96938.0,96937.0,0.32584623]
[1738802411658,2.5e-07,96938.0,96937.0,0.31584623]
[1738802412464,2.5e-07,96938.0,96937.0,0.31384623]
[1738802412661,2.5e-07,96938.0,96937.0,0.26714623]
[1738802412862,2.5e-07,96938.0,96937.0,0.01134623]
[1738802413286,2.5e-07,96938.0,96937.0,0.01334623]
[1738802413521,2.5e-07,96938.0,96937.0,0.03634623]
[1738802413668,2.5e-07,96938.0,96937.0,0.03434623]
[1738802413923,0.1025039,96938.0,96937.0,0.00222449]
[1738802414843,0.11281797,96938.0,96937.0,0.00222449]
[1738802415235,0.11281797,96938.0,96937.0,0.02522449]
[1738802415447,0.11281797,96938.0,96937.0,0.02322449]
[1738802415837,0.11281797,96938.0,96937.0,0.02522449]
[1738802416022,0.11281797,96938.0,96937.0,0.02322449]
[1738802416299,0.11281797,96938.0,96937.0,0.02422449]
[1738802417007,0.12121797,96938.0,96937.0,0.02422449]
[1738802417678,0.13333977,96938.0,96937.0,0.02422449]
[1738802417883,0.13333977,96938.0,96937.0,0.00122449]
[1738802417884,0.12121797,96938.0,96937.0,0.00122449]
[1738802419067,0.12121797,96938.0,96937.0,0.00022449]
[1738802419393,0.28245295,96938.0,96937.0,0.00122449]
[1738802419530,0.154763,96923.0,96921.0,0.00022428]
[1738802419733,0.10250365,96922.0,96921.0,0.00022428]
[1738802420504,0.18160365,96922.0,96921.0,0.00022428]
[1738802420831,0.19191772,96922.0,96921.0,0.00022428]
[1738802420944,0.19191772,96922.0,96904.0,0.206388]
[1738802421144,0.154775,96915.0,96905.0,0.229387]
[1738802421418,0.25728065,96914.0,96907.0,0.154787]
[1738802421641,0.10250365,96914.0,96907.0,0.154787]
[1738802421857,0.10250365,96914.0,96908.0,0.154785]
[1738802422050,0.10250365,96914.0,96906.0,0.206385]
[1738802422255,0.01871407,96913.0,96912.0,0.177779]
[1738802422557,0.12121772,96913.0,96912.0,0.177779]
[1738802424199,0.15479,96906.0,96904.0,0.01138648]
[1738802424371,0.10250365,96905.0,96904.0,0.01138648]
[1738802424549,0.10250365,96905.0,96903.0,0.154793]
[1738802424954,0.10250365,96905.0,96902.0,0.206393]
[1738802425170,0.01025037,96904.0,96902.0,0.023]
[1738802425367,0.10250365,96903.0,96902.0,0.023]
[1738802425570,0.10250365,96903.0,96902.0,0.0234665]
[1738802425954,0.10250365,96903.0,96902.0,0.0004665]
[1738802426651,0.10250365,96903.0,96902.0,0.0024665]
[1738802426856,0.15157336,96903.0,96902.0,0.0024665]
[1738802427419,0.16833747,96903.0,96902.0,0.0024665]
[1738802428569,0.11926776,96903.0,96902.0,0.0024665]
[1738802429192,0.11926776,96903.0,96902.0,0.00269099]
[1738802431798,0.11926776,96903.0,96902.0,0.00069099]
[1738802432001,0.11926776,96903.0,96902.0,0.00269099]
[1738802432191,0.27406076,96903.0,96902.0,0.00269099]
[1738802432400,0.35274394,96903.0,96902.0,0.00069099]
[1738802433342,0.35374394,96903.0,96902.0,0.00069099]
[1738802433584,0.35274394,96903.0,96902.0,0.00069099]
[1738802433916,0.35774394,96903.0,96902.0,0.00069099]
[1738802434320,0.12426776,96903.0,96902.0,0.15548599]
[1738802434522,0.12426776,96903.0,96902.0,0.18881817]
[1738802434983,0.12426776,96903.0,96902.0,0.17766325]
[1738802435203,0.11926776,96903.0,96902.0,0.17766325]
[1738802435425,0.13366776,96903.0,96902.0,0.17866325]
[1738802435869,0.12766776,96903.0,96902.0,0.17766325]
[1738802437599,0.14043454,96903.0,96902.0,0.17766325]
[1738802438030,0.12766776,96903.0,96902.0,0.17766325]
[1738802441123,0.01676411,96903.0,96902.0,0.17766325]
[1738802441311,0.01676411,96903.0,96902.0,0.40399508]
[1738802441536,0.01676411,96903.0,96902.0,0.45206325]
[1738802442513,0.01676411,96903.0,96902.0,0.45428774]
[1738802442952,0.01676411,96903.0,96902.0,0.45228774]
[1738802443163,0.01676411,96903.0,96902.0,0.45428774]
[1738802443333,1.1e-07,96903.0,96902.0,0.55679139]
[1738802443537,1.1e-07,96903.0,96902.0,0.56679139]
[1738802444176,0.00704334,96917.0,96916.0,0.403073]
[1738802444387,0.00704334,96917.0,96916.0,0.56467665]
[1738802444388,3.4e-07,96917.0,96916.0,0.56467665]
[1738802444584,0.09199208,96929.0,96924.0,0.0753]
[1738802444933,0.09199208,96929.0,96928.0,0.327754]
[1738802446616,0.09199208,96929.0,96928.0,0.329754]
[1738802447475,0.0084,96943.0,96929.0,0.173]
[1738802447675,0.0084,96943.0,96937.0,0.177739]
[1738802448930,0.000573,96938.0,96937.0,0.177739]
[1738802449154,0.002573,96938.0,96937.0,0.177739]
[1738802450083,0.002573,96938.0,96937.0,0.26832067]
[1738802450499,0.002573,96938.0,96937.0,0.49832067]
[1738802450923,0.002573,96938.0,96937.0,0.41864847]
[1738802451478,0.000573,96938.0,96937.0,0.41864847]
[1738802451652,0.000573,96938.0,96937.0,0.33864847]
[1738802451917,0.000573,96938.0,96937.0,0.34064847]
[1738802452467,0.000573,96938.0,96937.0,0.33864847]
[1738802452987,0.000573,96938.0,96937.0,0.34064847]
[1738802453195,0.000573,96938.0,96937.0,0.16564847]
[1738802453390,0.000573,96938.0,96930.0,0.206334]
[1738802453391,0.10307665,96938.0,96920.0,0.42069624]
[1738802453590,0.10250365,96937.0,96920.0,0.21434224]
[1738802453952,0.10250365,96937.0,96929.0,0.023]
[1738802454152,0.25724465,96937.0,96928.0,0.154753]
[1738802454378,0.17141931,96937.0,96920.0,0.21434224]
[1738802454928,0.01031693,96936.0,96931.0,0.154748]
[1738802455071,0.10250365,96935.0,96932.0,0.023]
[1738802455270,0.10250365,96935.0,96933.0,0.154746]
[1738802456310,0.01676656,96934.0,96933.0,0.177746]
[1738802456522,0.11927021,96934.0,96933.0,0.177746]
[1738802457309,0.11927021,96934.0,96933.0,0.023]
[1738802457516,0.11927021,96934.0,96933.0,0.177746]
[1738802459028,0.11927021,96934.0,96933.0,0.023]
[1738802459278,0.11927021,96934.0,96924.0,0.14304371]
[1738802459279,0.14766833,96934.0,96924.0,0.14304371]
[1738802459477,0.206334,96930.0,96924.0,0.14304371]
[1738802459654,0.10250365,96929.0,96924.0,0.14304371]
[1738802460562,0.284334,96930.0,96912.0,0.206372]
[1738802460563,0.10250365,96926.0,96912.0,0.206372]
[1738802460757,0.36111,96924.0,96916.0,0.154772]
[1738802460970,0.154764,96922.0,96912.0,0.206372]
[1738802461169,0.10250365,96921.0,96912.0,0.206372]
[1738802461397,0.10250365,96921.0,96917.0,0.02322449]
[1738802461843,0.10250365,96921.0,96920.0,0.154766]
[1738802461964,0.10250365,96921.0,96920.0,0.177766]
[1738802463787,0.11927269,96921.0,96920.0,0.177766]
[1738802464799,0.11927269,96921.0,96920.0,0.179766]
[1738802469416,0.01676904,96921.0,96920.0,0.179766]
[1738802469616,0.01676904,96921.0,96920.0,0.39913475]
[1738802470022,0.01676904,96921.0,96920.0,0.409566]
[1738802471023,0.01676904,96921.0,96920.0,0.407566]
[1738802471452,0.01676904,96921.0,96920.0,0.327766]
[1738802472038,0.01676904,96921.0,96920.0,0.329766]
[1738802472270,0.01676904,96921.0,96920.0,0.327766]
[1738802473712,0.01676904,96921.0,96920.0,0.328766]
[1738802473848,0.01676904,96921.0,96920.0,0.327766]
[1738802474027,0.01676904,96921.0,96920.0,0.177766]
[1738802474291,0.01676904,96921.0,96920.0,0.178766]
[1738802475332,0.11927269,96921.0,96920.0,0.178766]
[1738802476549,0.11927269,96921.0,96920.0,0.177766]
[1738802478246,0.12767269,96921.0,96920.0,0.177766]
[1738802479965,0.12767269,96921.0,96920.0,0.178766]
[1738802481425,0.02516904,96921.0,96920.0,0.178766]
[1738802481654,0.02516904,96921.0,96920.0,0.258566]
[1738802483421,0.02516904,96921.0,96920.0,0.257566]
[1738802483649,0.02516904,96921.0,96920.0,0.258566]
[1738802484022,0.02516904,96921.0,96920.0,0.257566]
[1738802484223,0.02516904,96921.0,96920.0,0.258566]
[1738802485027,0.02516904,96921.0,96920.0,0.257566]
[1738802485365,0.01676904,96921.0,96920.0,0.304066]
[1738802487155,0.01676904,96921.0,96920.0,0.303066]
[1738802488072,0.01676904,96921.0,96920.0,0.178766]
[1738802488329,0.01676904,96921.0,96920.0,0.155766]
[1738802489288,0.11927269,96921.0,96920.0,0.001]
[1738802489531,0.30227666,96921.0,96920.0,0.001]
[1738802489741,0.27403769,96921.0,96920.0,0.001]
[1738802490141,0.27403769,96921.0,96917.0,0.00022449]
[1738802490142,0.15477,96918.0,96917.0,0.00022449]
[1738802490463,0.154772,96917.0,96909.0,0.154784]
[1738802490620,0.10250365,96916.0,96909.0,0.154784]
[1738802490822,0.04805075,96915.0,96909.0,0.154784]
[1738802491051,0.10250365,96914.0,96908.0,0.14301489]
[1738802491206,0.154785,96909.0,96903.0,0.01117862]
[1738802491407,0.154785,96909.0,96902.0,0.00022449]
[1738802491408,0.25729665,96904.0,96902.0,0.00022449]
[1738802491611,0.16190122,96903.0,96902.0,0.00022449]
[1738802492820,0.17913636,96903.0,96890.0,0.14301489]
[1738802493049,0.206396,96901.0,96890.0,0.14301489]
[1738802493256,0.154802,96898.0,96891.0,0.023]
[1738802493414,0.10250365,96897.0,96891.0,0.023]
[1738802493609,0.14105709,96896.0,96880.0,0.14323917]
[1738802493822,0.154822,96886.0,96880.0,0.14323917]
[1738802494028,0.26568665,96885.0,96880.0,0.00022428]
[1738802494274,0.11086365,96885.0,96882.0,0.154826]
[1738802494887,0.03476767,96884.0,96882.0,0.154826]
[1738802495083,0.10250365,96883.0,96882.0,0.177826]
[1738802495409,0.154829,96882.0,96880.0,0.00122428]
[1738802495565,0.10250365,96881.0,96880.0,0.00122428]
[1738802495777,0.11927269,96881.0,96880.0,0.00122428]
[1738802495976,0.15099493,96881.0,96880.0,0.00122428]
[1738802496361,0.15099493,96881.0,96880.0,0.00022428]
[1738802497923,0.15999493,96881.0,96880.0,0.00122428]
[1738802498135,0.15099493,96881.0,96880.0,0.00022428]
[1738802498534,0.37719493,96881.0,96880.0,0.00022428]
[1738802498779,0.47719493,96881.0,96880.0,0.00022428]
[1738802498980,0.49010239,96881.0,96880.0,0.00022428]
[1738802499534,0.49010239,96881.0,96880.0,0.00122428]
[1738802499778,0.49910239,96881.0,96880.0,0.00122428]
[1738802499983,0.49910239,96881.0,96880.0,0.00022428]
[1738802500190,0.50810239,96881.0,96880.0,0.00122428]
[1738802500586,0.49010239,96881.0,96880.0,0.00022428]
[1738802501084,0.50124332,96881.0,96880.0,0.00022428]
[1738802501282,0.51024332,96881.0,96880.0,0.00122428]
[1738802502802,0.15,96880.0,96870.0,0.00022428]
[1738802502949,0.25734465,96873.0,96870.0,0.00022428]
[1738802504286,0.25734465,96873.0,96872.0,0.00050941]
[1738802504486,0.26234465,96873.0,96872.0,0.00050941]
[1738802504733,0.25734465,96873.0,96872.0,0.00050941]
[1738802504907,0.44211232,96873.0,96872.0,0.00050941]
[1738802505122,0.47178882,96873.0,96872.0,0.00050941]
[1738802506365,0.13218015,96873.0,96872.0,0.02350941]
[1738802506709,0.13818015,96873.0,96872.0,0.02211017]
[1738802506911,0.14654015,96873.0,96872.0,0.02111017]
[1738802507210,0.14654015,96873.0,96872.0,0.02211017]
[1738802507419,0.15354015,96873.0,96872.0,0.001]
[1738802507681,0.172105,96873.0,96870.0,0.00022428]
[1738802507820,0.172105,96873.0,96870.0,0.00036399]
[1738802508611,0.01676904,96872.0,96870.0,0.00036399]
[1738802508816,0.10250365,96871.0,96870.0,0.15520999]
[1738802509042,0.14440859,96871.0,96870.0,0.15520999]
[1738802509247,0.10250365,96871.0,96870.0,0.15520999]
[1738802509976,0.10450365,96871.0,96870.0,0.15520999]
[1738802510177,0.10450365,96871.0,96870.0,0.17820999]
[1738802510178,0.11286365,96871.0,96870.0,0.17820999]
[1738802510421,0.0296765,96872.0,96871.0,0.023]
[1738802510573,0.0380365,96872.0,96871.0,0.023]
[1738802510773,0.00836,96872.0,96871.0,0.1059]
[1738802510990,0.09210835,96878.0,96877.0,0.227135]
[1738802511188,0.00836,96888.0,96877.0,0.0723]
[1738802511387,0.00836,96888.0,96887.0,0.154819]
[1738802512036,0.03803738,96888.0,96887.0,0.177819]
[1738802512299,0.05274112,96888.0,96887.0,0.177819]
[1738802513297,0.05274112,96888.0,96887.0,0.178819]
[1738802513459,0.05284802,96888.0,96887.0,0.178819]
[1738802514445,0.03814428,96888.0,96887.0,0.178819]
[1738802514648,0.03814428,96888.0,96887.0,0.257919]
[1738802515959,0.03814428,96888.0,96887.0,0.256919]
[1738802516123,0.02978428,96888.0,96887.0,0.256919]
[1738802516294,0.02978428,96888.0,96887.0,0.257919]
[1738802516513,0.02978428,96888.0,96887.0,0.3177943]
[1738802516716,0.01688107,96888.0,96887.0,0.26814144]
[1738802516895,0.01688107,96888.0,96887.0,0.26914144]
[1738802517095,0.01688107,96888.0,96887.0,0.26814144]
[1738802517318,0.01688107,96888.0,96887.0,0.26914144]
[1738802517697,0.01688107,96888.0,96887.0,0.26814144]
[1738802517881,0.01688107,96888.0,96887.0,0.26914144]
[1738802518083,0.02978428,96888.0,96887.0,0.26914144]
[1738802518502,0.13228793,96888.0,96887.0,0.16704144]
[1738802518742,0.14613039,96888.0,96887.0,0.16704144]
[1738802519081,0.14613039,96888.0,96887.0,0.155819]
[1738802519329,0.14613039,96888.0,96887.0,0.154819]
[1738802519502,0.14613039,96888.0,96887.0,0.178819]
[1738802519702,0.14613039,96888.0,96887.0,0.177819]
[1738802519936,0.14613039,96888.0,96887.0,0.154819]
[1738802520186,0.14613039,96888.0,96887.0,0.178819]
[1738802520406,0.14613039,96888.0,96887.0,0.001]
[1738802520683,0.30094739,96888.0,96887.0,0.001]
[1738802521116,0.14613039,96888.0,96887.0,0.001]
[1738802521320,0.13228793,96888.0,96887.0,0.024]
[1738802521659,0.13228793,96888.0,96887.0,0.02270149]
[1738802522044,0.13228793,96888.0,96886.0,0.13106223]
[1738802522403,0.10250365,96887.0,96886.0,0.13106223]
[1738802522944,0.10250365,96887.0,96844.0,0.3203]
[1738802523149,0.13121384,96887.0,96883.0,0.154825]
[1738802523604,0.02967738,96886.0,96883.0,0.154825]
[1738802523816,0.10250365,96884.0,96871.0,0.154844]
[1738802524017,0.154827,96882.0,96870.0,0.21506065]
[1738802524237,0.10250365,96879.0,96870.0,0.21506065]
[1738802524599,0.10250365,96879.0,96874.0,0.154839]
[1738802524996,0.10250365,96879.0,96878.0,0.177833]
[1738802525216,0.00836,96883.0,96882.0,0.154827]
[1738802525419,0.11086365,96883.0,96882.0,0.154827]
[1738802526225,0.11086365,96883.0,96882.0,0.177827]
[1738802526402,0.00936,96883.0,96882.0,0.177827]
[1738802526597,0.00836,96883.0,96882.0,0.17885906]
[1738802526894,0.00836,96883.0,96882.0,0.17985906]
[1738802527100,0.00836,96883.0,96882.0,0.32985906]
[1738802527484,0.00836,96883.0,96882.0,0.328827]
[1738802527944,0.02513395,96883.0,96882.0,0.327827]
[1738802528174,0.01677395,96883.0,96882.0,0.38487405]
[1738802528375,0.01677395,96883.0,96882.0,0.327827]
[1738802529156,0.01677395,96883.0,96882.0,0.3396439]
[1738802529325,0.01677395,96883.0,96882.0,0.3386439]
[1738802529732,0.01677395,96883.0,96882.0,0.3396439]
[1738802530061,0.01677395,96883.0,96882.0,0.3386439]
[1738802530260,0.01677395,96883.0,96882.0,0.3396439]
[1738802533449,0.01677395,96883.0,96882.0,0.1666439]
[1738802534000,0.01677395,96883.0,96882.0,0.1656439]
[1738802534202,0.01677395,96883.0,96882.0,0.1886439]
[1738802534402,0.02967793,96883.0,96882.0,0.1896439]
[1738802534603,0.13218158,96883.0,96882.0,0.154827]
[1738802536100,0.13251714,96883.0,96882.0,0.155827]
[1738802536257,0.13251714,96883.0,96882.0,0.154827]
[1738802536461,0.13251714,96883.0,96882.0,0.155827]
[1738802538552,0.13251714,96883.0,96882.0,0.15605149]
[1738802538968,0.13251714,96883.0,96882.0,0.15505149]
[1738802539175,0.13251714,96883.0,96882.0,0.15605149]
[1738802540026,0.13251714,96883.0,96882.0,0.15505149]
[1738802540317,0.1192776,96883.0,96882.0,0.15505149]
[1738802540517,0.02513395,96883.0,96882.0,0.17805149]
[1738802540819,0.1276376,96883.0,96882.0,0.15505149]
[1738802541019,0.1286376,96883.0,96882.0,0.15505149]
[1738802541809,0.1286376,96883.0,96882.0,0.00022449]
[1738802542013,0.1286376,96883.0,96882.0,0.15505149]
[1738802542217,0.1276376,96883.0,96882.0,0.15505149]
[1738802542447,0.14042274,96883.0,96882.0,0.00022449]
[1738802542661,0.29524774,96883.0,96882.0,0.00022449]
[1738802543059,0.29524774,96883.0,96882.0,0.00122449]
[1738802543259,0.14042274,96883.0,96882.0,0.00022449]
[1738802543765,0.14142274,96883.0,96882.0,0.00022449]
[1738802544122,0.14442274,96883.0,96882.0,0.00022449]
[1738802544550,0.1232776,96883.0,96882.0,0.15505149]
[1738802544749,0.1232776,96883.0,96882.0,0.17805149]
[1738802545478,0.1192776,96883.0,96882.0,0.17805149]
[1738802546483,0.1192776,96883.0,96882.0,0.18879953]
[1738802547363,0.1276376,96883.0,96882.0,0.18879953]
[1738802549395,0.1276376,96883.0,96882.0,0.18979953]
[1738802553865,0.14043343,96883.0,96882.0,0.18979953]
[1738802554985,0.1276376,96883.0,96882.0,0.18979953]
[1738802555134,0.1276376,96883.0,96882.0,0.18879953]
[1738802555539,0.1276376,96883.0,96882.0,0.18979953]
[1738802555767,0.1276376,96883.0,96882.0,0.18879953]
[1738802556131,0.1276376,96883.0,96882.0,0.18979953]
[1738802556562,0.14043343,96883.0,96882.0,0.18979953]
[1738802558332,0.14043343,96883.0,96882.0,0.18879953]
[1738802558771,0.14043343,96883.0,96882.0,0.18979953]
[1738802559068,0.14043343,96883.0,96882.0,0.18879953]
[1738802559232,0.14043343,96883.0,96882.0,0.18979953]
[1738802560670,0.14043343,96883.0,96882.0,0.15605149]
[1738802560882,0.14043343,96883.0,96882.0,0.00122449]
[1738802561485,0.14043343,96883.0,96870.0,0.28667765]
[1738802561683,0.11657906,96882.0,96870.0,0.29760391]
[1738802561882,0.10250365,96882.0,96870.0,0.29760391]
[1738802562089,0.10250365,96882.0,96870.0,0.15444708]
[1738802562285,0.00836,96881.0,96870.0,0.36090808]
[1738802562499,0.10250365,96880.0,96877.0,0.154834]
[1738802563583,0.10250365,96878.0,96872.0,0.00122449]
[1738802563790,0.10250365,96875.0,96872.0,0.00122449]
[1738802564024,0.02214433,96874.0,96872.0,0.00122449]
[1738802564185,0.10250365,96873.0,96872.0,0.00122449]
[1738802565319,0.10250365,96873.0,96872.0,0.00022449]
[1738802565525,0.1192776,96873.0,96867.0,0.206468]
[1738802565633,0.03771559,96872.0,96870.0,0.154845]
[1738802565838,0.03771559,96872.0,96864.0,0.01077991]
[1738802565839,0.10250365,96871.0,96864.0,0.01077991]
[1738802566045,0.10250365,96871.0,96862.0,0.206479]
[1738802566455,0.10250365,96870.0,96860.0,0.15393049]
[1738802566689,0.154852,96867.0,96860.0,0.14315683]
[1738802566888,0.10250365,96865.0,96863.0,0.154857]
[1738802567496,0.01677395,96864.0,96863.0,0.154857]
[1738802567759,0.1192776,96864.0,96863.0,0.154857]
[1738802567966,0.1192776,96864.0,96859.0,0.20670928]
[1738802568189,0.10250365,96863.0,96859.0,0.20670928]
[1738802568393,0.01659776,96862.0,96861.0,0.15508528]
[1738802568706,0.11910141,96862.0,96861.0,0.15508528]
[1738802569155,0.21192563,96862.0,96861.0,0.15508528]
[1738802569608,0.21292563,96862.0,96861.0,0.00022428]
[1738802569825,0.36778463,96862.0,96861.0,0.00022428]
[1738802570059,0.21292563,96862.0,96861.0,0.00022428]
[1738802570505,0.36678463,96862.0,96861.0,0.00022428]
[1738802570738,0.44128545,96862.0,96861.0,0.00022428]
[1738802570968,0.28642645,96862.0,96861.0,0.00022428]
[1738802571467,0.44128545,96862.0,96861.0,0.00022428]
[1738802572353,0.44228545,96862.0,96861.0,0.00022428]
[1738802572561,0.34863742,96862.0,96861.0,0.00022428]
[1738802572894,0.35263742,96862.0,96861.0,0.00022428]
[1738802573308,0.19777842,96862.0,96861.0,0.00022428]
[1738802573773,0.1232776,96862.0,96861.0,0.00022428]
[1738802574814,0.1232776,96862.0,96861.0,0.15508528]
[1738802575060,0.1316376,96862.0,96861.0,0.15508528]
[1738802575270,0.1316376,96862.0,96861.0,0.00022428]
[1738802575671,0.1276376,96862.0,96861.0,0.00022428]
[1738802575947,0.21607202,96862.0,96861.0,0.00022428]
[1738802576163,0.21407202,96862.0,96861.0,0.00022428]
[1738802576520,0.21807202,96862.0,96861.0,0.00022428]
[1738802577084,0.22207202,96862.0,96861.0,0.00022428]
[1738802577631,0.27097202,96862.0,96861.0,0.00022428]
[1738802578480,0.1845376,96862.0,96856.0,0.00014762]
[1738802578684,0.10250365,96857.0,96856.0,0.00014762]
[1738802579967,0.10895517,96857.0,96856.0,0.00014762]
[1738802580163,0.11195517,96857.0,96856.0,0.00014762]
[1738802580844,0.26682217,96857.0,96856.0,0.00014762]
[1738802581277,0.41682217,96857.0,96856.0,0.00014762]
[1738802581474,0.49212217,96857.0,96856.0,0.00014762]
[1738802581674,0.53852217,96857.0,96856.0,0.00014762]
[1738802581929,0.53552217,96857.0,96856.0,0.00014762]
[1738802582120,2.03552217,96857.0,96856.0,0.00014762]
[1738802582318,2.04452217,96857.0,96856.0,0.00114762]
[1738802582622,2.03552217,96857.0,96856.0,0.00014762]
[1738802582931,2.03552217,96857.0,96854.0,5.856e-05]
[1738802582932,0.16487,96855.0,96854.0,5.856e-05]
[1738802583133,0.380793,96841.0,96840.0,0.00022449]
[1738802583284,0.48329665,96841.0,96840.0,0.00029667]
[1738802583483,0.63329665,96841.0,96840.0,0.00029667]
[1738802584907,0.65007946,96841.0,96840.0,0.00029667]
[1738802585715,0.65907946,96841.0,96840.0,0.00029667]
[1738802586134,0.53317946,96841.0,96840.0,0.00029667]
[1738802586335,0.54217946,96841.0,96840.0,0.00029667]
[1738802586719,1.24787946,96841.0,96840.0,0.00029667]
[1738802587066,1.29467946,96841.0,96840.0,0.00029667]
[1738802587393,2.80561862,96841.0,96840.0,0.00029667]
[1738802588327,2.50561862,96841.0,96840.0,0.00029667]
[1738802588542,0.59927946,96841.0,96840.0,0.00029667]
[1738802588744,0.60763946,96841.0,96840.0,0.00029667]
[1738802589076,0.61663946,96841.0,96840.0,0.00129667]
[1738802589277,0.60630817,96841.0,96840.0,0.00029667]
[1738802589479,0.61530817,96841.0,96840.0,0.00129667]
[1738802589760,0.60630817,96841.0,96840.0,0.00029667]
[1738802589912,0.60630817,96841.0,96840.0,0.00129667]
[1738802590269,0.60630817,96841.0,96840.0,0.00029667]
[1738802590707,0.59985665,96841.0,96840.0,0.00029667]
[1738802590874,0.27475665,96841.0,96840.0,0.00029667]
[1738802591072,0.34353582,96841.0,96840.0,0.00029667]
[1738802591608,0.35253582,96841.0,96840.0,0.00129667]
[1738802591802,0.33453582,96841.0,96840.0,0.00029667]
[1738802592230,0.33517582,96841.0,96840.0,0.00129667]
[1738802592435,0.34353582,96841.0,96840.0,0.00029667]
[1738802592780,0.35253582,96841.0,96840.0,0.00129667]
[1738802593029,0.34353582,96841.0,96840.0,0.00029667]
[1738802593233,0.79353582,96841.0,96840.0,0.00029667]
[1738802593406,0.91653582,96841.0,96840.0,0.00029667]
[1738802593784,0.92299235,96841.0,96840.0,0.00029667]
[1738802593980,0.93199235,96841.0,96840.0,0.00129667]
[1738802595209,0.15491,96830.0,96829.0,0.00022428]
[1738802595404,0.77261365,96830.0,96829.0,0.00034485]
[1738802596054,0.01,96826.0,96824.0,6.839e-05]
[1738802596408,0.25742165,96825.0,96824.0,6.839e-05]
[1738802596587,0.32620082,96825.0,96824.0,6.839e-05]
[1738802596733,1.82620082,96825.0,96824.0,6.839e-05]
[1738802596927,2.12620082,96825.0,96824.0,6.839e-05]
[1738802597393,2.12620082,96825.0,96824.0,0.00106839]